Cogmind - Beta 14 --- EXPLORER MODE // 2024.08.09 @ 15:57:58 Player: Leo Result: Self-destructed Performance ------------- Evolutions (1) 500 Regions Visited (2) 400 Robots Destroyed (9) 45 Value Destroyed (233) 233 Prototype IDs (1) 20 Alien Tech Used (0) 0 Bonus (0) 0 TOTAL SCORE: 1198 Bonus ------- None Cogmind --------- Core Integrity 351/400 Matter 220/300 Energy 40/160 System Corruption 0% Temperature Cool (0) Movement Walking (190) Ox1 Location -9/Materials Parts ------- > --- POWER (1) -------- Light Nuclear Core > --- PROPULSION (3) --- Aluminum Leg Aluminum Leg Surge Thruster > --- UTILITY (4) ------ Medium Storage Unit Signal Interpreter Targeting Computer Propulsion Shielding > --- WEAPON (2) ------- EM Pulse Gun Enhanced Autogun > --- INVENTORY (10) --- Wheel Wheel Hover Unit Heat Sink Improved Terrain Scanner Seismic Detector Weapon Shielding Small Laser Peak State ------------ > --- POWER ------------ Light Nuclear Core > --- PROPULSION ------- Aluminum Leg Aluminum Leg Surge Thruster > --- UTILITY ---------- Medium Storage Unit Signal Interpreter Targeting Computer Propulsion Shielding > --- WEAPON ----------- EM Pulse Gun Enhanced Autogun > --- INVENTORY -------- Wheel Wheel Hover Unit Heat Sink Improved Terrain Scanner Seismic Detector Weapon Shielding Small Laser [Rating: 18] Favorites ----------- Power Light Ion Engine Engine Light Ion Engine Power Core Light Nuclear Core Propulsion Wheel Treads Light Treads Leg Aluminum Leg Wheel Wheel Hover Unit Hover Unit Flight Unit Surge Thruster Utility Medium Storage Unit Device Improved Terrain Scanner Storage Medium Storage Unit Processor Targeting Computer Protection Propulsion Shielding Weapon EM Pulse Gun Energy Gun EM Pulse Gun Ballistic Gun Enhanced Autogun Build | -11 -10 -9 ------- Run | Yrd Mat Mat Slots Evolved 3 | . 1 2 Power . | . . . Propulsion 1 | . 1 . Utility 2 | . . 2 Weapon . | . . . Parts Attached 22 | 6 9 7 Power 2 | 1 . 1 Engine 1 | 1 . . Core 1 | . . 1 Reactor . | . . . Propulsion 10 | 2 5 3 Treads 1 | . 1 . Leg 4 | 2 . 2 Wheel 3 | . 3 . Hover 1 | . 1 . Flight 1 | . . 1 Utility 6 | 1 3 2 Device 1 | . 1 . Storage 1 | . 1 . Processor 3 | 1 . 2 Hackware . | . . . Protection 1 | . 1 . Artifact . | . . . Weapon 4 | 2 1 1 Energy Gun 3 | 2 1 . Energy Cannon . | . . . Ballistic Gun 1 | . . 1 Ballistic Cannon . | . . . Launcher . | . . . Special Weapon . | . . . Impact Weapon . | . . . Slashing Weapon . | . . . Piercing Weapon . | . . . Special Melee Weapon . | . . . Unidentified Prototypes 1 | . . 1 Parts Lost 1 | . . 1 Power 1 | . . 1 Propulsion . | . . . Utility . | . . . Weapon . | . . . Highest Loss Streak 1 | . . 1 To Critical Strikes . | . . . Average Slot Usage (%) 98 | . 96 100 Engine 11 | . 12 10 Treads 6 | . 10 . Leg 5 | . 9 . Wheel 17 | . 15 20 Flight 3 | . . 8 Device 5 | . 8 . Storage 10 | . 11 10 Processor 9 | . 3 20 Protection 4 | . . 10 Energy Gun 19 | . 24 11 Ballistic Gun 3 | . . 8 Peak Build Rating 18 | 6 10 18 Average Rating 10 | 4 9 15 On Entrance 5 | . 6 9 Naked Turns . | . . . Heaviest Build 19 | 6 17 19 Greatest Support 20 | 3 20 20 Greatest Overweight (x) 6 | 1 5 6 Average Overweight (x) . | . . 3 Largest Inventory Capacity 10 | 5 10 10 Average Capacity 9 | 5 9 10 Most Carried 10 | 5 10 9 Average Carried 6 | 2 5 7 Final Capacity 10 | 5 10 10 Final Carried 8 | 5 8 8 Class Distribution -------------------- 100% | Hacker-Mutant Dominant Class ---------------- Hacker-Mutant | -10/Materials Hacker-Mutant | -9/Materials Resources | -11 -10 -9 ----------- Run | Yrd Mat Mat Matter Collected 379 | 227 83 69 Remotely . | . . . Salvage Created 386 | . 129 257 Parts 27 | . 15 12 Haulers Intercepted . | . . . Recyclers Shooed 1 | . . 1 Parts Field Recycled . | . . . Retrieved Matter . | . . . Parts Self-Destructed . | . . . Prevented . | . . . Kills | -11 -10 -9 ------- Run | Yrd Mat Mat Combat Hostiles Destroyed 6 | . 2 4 Guns 5 | . 2 3 AOE 1 | . . 1 Classes Destroyed 6 | . 3 3 Tunneler 1 | . 1 . Recycler 1 | . . 1 Watcher 1 | . 1 . Swarmer 1 | . . 1 Grunt 4 | . 2 2 Sentry 1 | . . 1 Best Kill Streak 4 | . 2 4 Combat Bots Only 3 | . 1 3 Max Kills in Single Turn 2 | . 1 2 Gunslinging . | . . . Exploded 1 | . . 1 Melee . | . . . Uniques/NPCs Destroyed . | . . . Combat | -11 -10 -9 -------- Run | Yrd Mat Mat Hostile Shots Fired 54 | . 12 42 Missed 19 | . 6 13 Damage Taken 302 | . 61 241 Core 70 | . 21 49 Absorbed by Shields . | . . . Redirected to Shielding 23 | . . 23 Ignored by Resistances 189 | . 38 151 Core Remaining (%) 95 | 100 91 . Volleys Fired 22 | . 11 11 Largest 2 | . 2 2 Hottest 80 | . 80 65 Shots Fired 38 | . 16 22 Gun 38 | . 16 22 Cannon . | . . . Launcher . | . . . Special . | . . . Kinetic 11 | . . 11 Thermal 5 | . 5 . Explosive . | . . . Electromagnetic 22 | . 11 11 Robot Hit Streak 17 | . 8 17 Robot Miss Streak 1 | . 1 1 Penetration Max . | . . . Secondary Targets 2 | . . 2 Max Gunslinging Chain 1 | . . 1 Shots Hit Robots 26 | . 9 17 Core Hits 15 | . 6 9 Critical Kills . | . . . Critical Parts Destroyed . | . . . Critical Strikes . | . . . Melee Attacks . | . . . Impact . | . . . Slashing . | . . . Piercing . | . . . Sneak Attacks . | . . . Combat Hostiles . | . . . Follow-up Attacks . | . . . Damage Inflicted 454 | . 123 331 Guns 384 | . 123 261 Cannons . | . . . Explosions 70 | . . 70 Melee . | . . . Ramming . | . . . Kinetic 144 | . . 144 Thermal 92 | . 22 70 Explosive . | . . . Electromagnetic 218 | . 101 117 Impact . | . . . Slashing . | . . . Piercing . | . . . Highest Corruption . | . . . Average Corruption . | . . . Corruption Purged . | . . . Corruption Blocked . | . . . Overload Shots . | . . . Overflow Damage 1 | . . 1 Projectiles . | . . . Explosions 1 | . . 1 Melee . | . . . Knockbacks . | . . . Impact . | . . . Kinetic . | . . . Secondary . | . . . Self-Inflicted Damage 14 | . . 14 Shots 1 | . . 1 Rammed . | . . . Targets Rammed . | . . . Kicked . | . . . Crushed . | . . . Highest Temperature 81 | . 18 81 Average Temperature 25 | . 10 34 Received Heat Transfer 195 | . 36 159 Siege Activations . | . . . Robots Corrupted . | . . . Combat Hostiles . | . . . Parts Fried . | . . . Impact Corruptions . | . . . Robots Melted . | . . . Combat Hostiles . | . . . Parts Melted . | . . . Heat Transferred 100 | . 50 50 Parts Sabotaged . | . . . Parts Stolen . | . . . Parts Stripped . | . . . Power Chain Reactions 1 | . . 1 Alert | -11 -10 -9 ------- Run | Yrd Mat Mat Peak Influence 121 | . 67 121 Initial 19 | . . 19 Average 36 | . 47 35 Maximum Alert Level . | . . . Low Security (%) 100 | 100 100 100 Level 1 . | . . . Level 2 . | . . . Level 3 . | . . . Level 4 . | . . . Level 5 . | . . . High Security . | . . . Max Security . | . . . Squads Dispatched . | . . . Investigation . | . . . Extermination . | . . . Reinforcement . | . . . Assault . | . . . Garrison . | . . . Intercept . | . . . Searches Triggered . | . . . Construction Impeded . | . . . Haulers Reinforced . | . . . Active Scanning Responses . | . . . Cargo Convoy Interrupts . | . . . Stealth | -11 -10 -9 --------- Run | Yrd Mat Mat Distress Signals . | . . . Communications Jammed . | . . . Distress Signals . | . . . Times Spotted 10 | . 4 6 Peak Tracking Total 5 | . 2 5 Tactical Retreats . | . . . Traps | -11 -10 -9 ------- Run | Yrd Mat Mat Traps Triggered 2 | . 2 . Indirectly . | . . . Trap Hack Attempts . | . . . Triggered . | . . . Disarmed . | . . . Reprogrammed . | . . . Reused . | . . . Traps Extracted . | . . . Installed . | . . . Triggered . | . . . Machines | -11 -10 -9 ---------- Run | Yrd Mat Mat Machines Disabled . | . . . Max in Single Turn . | . . . Machines Repaired . | . . . Machines Dismantled . | . . . Machines Sabotaged . | . . . Overloaded Fab Kills . | . . . Hacking | -11 -10 -9 --------- Run | Yrd Mat Mat Machines Accessed . | . . . Terminals . | . . . Fabricators . | . . . Repair Stations . | . . . Recycling Units . | . . . Scanalyzers . | . . . Garrison Access . | . . . Total Hacks . | . . . Successful . | . . . Failed . | . . . Catastrophic . | . . . Database Lockouts . | . . . Manual . | . . . Terminals . | . . . Fabricators . | . . . Repair Stations . | . . . Recycling Units . | . . . Scanalyzers . | . . . Garrison Access . | . . . Terminal Hacks . | . . . Fabricator Hacks . | . . . Repair Station Hacks . | . . . Recycling Unit Hacks . | . . . Scanalyzer . | . . . Garrison Access Hacks . | . . . Unauthorized Hacks . | . . . Terminals . | . . . Fabricators . | . . . Repair Stations . | . . . Recycling Units . | . . . Scanalyzers . | . . . Garrison Access . | . . . Data Cores Recovered . | . . . Used . | . . . Hacking Detections . | . . . Full Trace Events . | . . . Feedback Events . | . . . Feedback Blocked . | . . . Robot Schematics Acquired . | . . . Robots Built . | . . . Authchips . | . . . Time . | . . . Total Robot Build Rating . | . . . Part Schematics Acquired . | . . . Parts Built . | . . . Authchips . | . . . Time . | . . . Total Part Build Rating . | . . . Parts Repaired . | . . . Time . | . . . Parts Recycled . | . . . Recycled Matter . | . . . Retrieved Matter . | . . . Retrieved Components . | . . . Parts Scanalyzed . | . . . Part Schematics Acquired . | . . . Parts Damaged . | . . . Bothacking | -11 -10 -9 ------------ Run | Yrd Mat Mat Used RIF Installer . | . . . Robots Hacked . | . . . Non-combat . | . . . Combat . | . . . Robot Hacks Applied . | . . . Relay Couplers Released . | . . . Fabnet Peak Effective % . | . . . Robots Rewired . | . . . Allies Hacked . | . . . Hacks Repelled . | . . . Allies | -11 -10 -9 -------- Run | Yrd Mat Mat Total Allies . | . . . Largest Group . | . . . Highest-Rated Group . | . . . Highest-Rated Ally . | . . . Total Orders . | . . . Ally Attacks . | . . . Total Damage . | . . . Kills . | . . . Allies Corrupted . | . . . Allies Melted . | . . . Intel | -11 -10 -9 ------- Run | Yrd Mat Mat Robot Analysis Total . | . . . Derelict Logs Recovered . | . . . Drone Launches . | . . . Drone Recoveries . | . . . Exploration | -11 -10 -9 ------------- Run | Yrd Mat Mat Turns Passed 468 | 66 244 158 Spaces Moved 331 | 54 218 59 Core 64 | 54 10 . Treads . | . . . Legs 42 | . 42 . Wheels 191 | . 166 25 Hover . | . . . Flight 34 | . . 34 Fastest Speed 50 | 50 80 80 Average Speed 109 | 92 90 198 Slowest Speed 300 | 100 300 285 Overloaded Moves . | . . . Propulsion Burnouts . | . . . Robots Hopped . | . . . Cave-ins Triggered . | . . . Exploration Rate (%) 8 | 3 17 5 Regions Visited 2 Branch Regions . Pre-discovered Areas . | . . . Known Exits Taken 2 | 1 1 . Unknown Exits Taken . | . . . Scrap Searched . | . . . Spaces Dug . | . . . Terrain Destroyed 7 | . . 7 Melee . | . . . Projectile . | . . . AOE 7 | . . 7 Terrain Rammed . | . . . Walls Destroyed . | . . . Machines Disabled . | . . . Actions | -11 -10 -9 --------- Run | Yrd Mat Mat Total 396 | 70 246 80 Wait . | . . . Move 329 | 53 217 59 Hop . | . . . Pick Up 23 | 11 9 3 Fast Attach . | . . . Attach 14 | 6 5 3 Detach . | . . . Swap 8 | . 4 4 Drop . | . . . Fire 22 | . 11 11 Melee . | . . . Ram . | . . . Kick . | . . . Crush . | . . . Escape Stasis . | . . . Rewire . | . . . Trap . | . . . Miscellaneous . | . . . Route ------- -11/Scrapyard -10/Materials -9/Materials History --------- Turn | Location | Event 8 | -11/Scrapyard | Identified exit to Materials 8 | -11/Scrapyard | Discovered exit to Materials (range 16) 67 | -11/Scrapyard | Entered Materials 67 | -10/Materials | Evolved 1 slot: Propulsion x1 273 | -10/Materials | Identified exit to Materials 273 | -10/Materials | Discovered exit to Materials (range 8) 311 | -10/Materials | Entered another Materials area 311 | -9/Materials | Evolved 2 slots: Utility x2 356 | -9/Materials | Build established: Hacker-Mutant 469 | -9/Materials | Self-destructed Last Messages --------------- K-01 Serf collects debris. T-07 Excavator is excavating. K-01 Serf collects debris. Acquired 16 matter. R-06 Scavenger collects Lgt. Ion Engine. K-01 Serf collects debris. T-07 Excavator is excavating. R-06 Scavenger collects Flight Unit. K-01 Serf cleans the Terminal. T-07 Excavator is excavating. R-06 Scavenger collects Aluminum Leg. Chain reaction triggered in Imp. Ion Engine. Y-45 Defender destroyed. R-06 Scavenger destroyed. Lgt. Ion Engine destroyed. Destroyed Lgt. Ion Engine. T-07 Excavator is excavating. K-01 Serf collects debris. T-07 Excavator is excavating. K-01 Serf collects debris. Map ----- +----------------------------------------------------+ | | | | | | | | | | | | | ?????????????????????????????????????????????????? | | ??????########???????????????????????????????????? | | ??????#!![[==#???????????????????????????????????? | | ??????#!! [ =#???????????????????????????????????? | | ??????# #???????????????????????????????????? | | ??????## #####???????????????????????????????????? | | ???????# #???????????????????????????????????????? | | #####??# #???????????????????????????????????????? | | # #??# ############????????????????????????????? | | # #??# + #????????????????????????????? | | # #??# # #????????????????????????????? | | # #### # #????????????????????????????? | | # # #????????????????????????????? | | # + #????????????????????????????? | | # # #????????????????????????????? | | # ######## #????????????????????????????? | | # #??????# #?#########????##????????????? | | # #??????# #?# =;=;## #????????????? | | + #??????######+#####! [%%*! #????????????? | | # #???????????# ==@[%= k T #????????????? | | # #???????????#######[ *==;### #????????????? | | # #?????????????????## ;;###???????????????????? | | ?????????????????? ##?????????????????????? | | ????????????????? #??????????????????????? | | ????????????????# t #??????????????????????? | | ????????????????# ###??????????????????????? | | ????????????????###?????????????????????????? | | ?????????????????????????????????????????????????? | | ?????????????????????????????????????????????????? | | ?????????????????????????????????????????????????? | | ?????????????????????????????????????????????????? | | ?????????????????????????????????????????????????? | | ?????????????????????????????????????????????????? | | ?????????????????????????????????????????????????? | | ?????????????????????????????????????????????????? | | ?????????????????????????????????????????????????? | | ?????????????????????????????????????????????????? | | ?????????????????????????????????????????????????? | | ?????????????????????????????????????????????????? | | ?????????????????????????????????????????????????? | | ?????????????????????????????????????????????????? | | ?????????????????????????????????????????????????? | | ?????????????????????????????????????????????????? | | ?????????????????????????????????????????????????? | +----------------------------------------------------+ Best States ------------- Heat Dissipation 28 Energy Generation 10 Energy Capacity 125 Matter Stores 300 Matter Capacity 300 Sight Range 16 Terrain Scan Range 16 Terrain Scan Density 10 Resistance: KI 35 Resistance: TH 35 Resistance: EX 35 Resistance: EM 35 Resistance: I 35 Resistance: S 35 Resistance: P 35 Propulsion Shielding 33 Evasion (%) 55 Targeting Accuracy 5 Offensive Hacking 20 Item Schematics ----------------- None Robot Schematics ------------------ None Fabricated ------------ Nothing Alien Tech Used ----------------- None Achievements -------------- Risk Taker Challenges ------------ None Game ------ Seed FissionPhaseRifle Manual? 0 Play Time 00:49:35 Cumulative 0.8 hours Start 2024.08.08 @ 13:39:28 End 2024.08.09 @ 15:57:58 Sessions 5 Manual Loads 0 Difficulty Explorer Special Mode None Game No. 6 Rogue 3 Adventurer 0 Explorer 3 Win Type - Total 0 Types 0/0/0/0/0/0/0/0/0 Lore% 0 Gallery% 2 Achievement% 1 Wizard Run 0 Options --------- Layout 1 ASCII 0 Keyboard 0 Movement Mouse Keybinds 0 Fullscreen 1 Font 24/Smallcaps Map View 50x35 Zoom Use 0% Tactical HUD 0 Map Filters NONE Filters NONE Steam 1 RUN: 814ff6d7-24d4-490e-a330-9d87737d05bb